bitfinex-derivatives/quotes_BNBF0:USTF0_20251203
["timestamp","ask_amount","ask_price","bid_price","bid_amount"]
[1764760390137,1.65709028,896.49,895.5,0.945]
[1764760390341,1.65709028,896.49,895.51,0.69698694]
[1764760390536,1.65709028,896.49,895.23,0.83346659]
[1764760390740,1.65709028,896.49,895.24,0.69698694]
[1764760390938,1.65709028,896.5,895.25,0.69698694]
[1764760391141,1.65709028,896.49,895.26,0.69698694]
[1764760391338,1.65709028,896.5,895.27,0.69698694]
[1764760391542,1.65709028,896.5,895.23,0.83346659]
[1764760391543,1.65709028,896.5,895.28,0.69698694]
[1764760391842,1.65709028,896.49,895.29,0.69698694]
[1764760392142,0.19413468,896.82,895.3,0.69698694]
[1764760392143,1.65709028,896.5,895.3,0.69698694]
[1764760392344,1.65709028,896.5,895.31,0.69698694]
[1764760392539,1.65709028,896.5,895.32,0.69698694]
[1764760392840,1.65709028,896.5,895.33,0.69698694]
[1764760393139,1.65709028,896.49,895.34,0.69698694]
[1764760393438,1.65709028,896.49,895.35,0.69698694]
[1764760393643,1.65709028,896.49,895.36,0.69698694]
[1764760393843,1.65709028,896.49,895.37,0.69698694]
[1764760394043,1.65709028,896.49,895.38,0.69698694]
[1764760394242,1.65709028,896.49,895.39,0.69698694]
[1764760394444,1.65709028,896.48,895.4,0.69698694]
[1764760394645,1.65709028,896.48,895.41,0.69698694]
[1764760394840,1.65709028,896.48,895.42,0.69698694]
[1764760395044,1.65709028,896.48,895.43,0.69698694]
[1764760395346,1.65709028,896.48,895.44,0.69698694]
[1764760395546,1.65709028,896.48,895.45,0.69698694]
[1764760395743,1.65709028,896.48,895.46,0.69698694]
[1764760396046,1.65709028,896.48,895.47,0.69698694]
[1764760396242,1.65709028,896.47,895.48,0.69698694]
[1764760396446,1.65709028,896.47,895.32,1.1]
[1764760396447,1.65709028,896.47,895.49,0.69698694]
[1764760396644,1.65709028,896.47,895.5,0.69698694]
[1764760396847,1.65709028,896.47,895.51,0.69698694]
[1764760397048,1.65709028,896.47,895.52,0.69698694]
[1764760397249,1.65709028,896.47,895.53,0.69698694]
[1764760397449,1.65709028,896.47,895.54,0.69751005]
[1764760397745,1.65709028,896.46,895.55,0.69751005]
[1764760397945,1.65709028,896.46,895.32,1.1]
[1764760398149,1.65709028,896.46,895.33,0.69751005]
[1764760398347,1.65709028,896.45,895.34,0.69751005]
[1764760398551,1.65709028,896.45,895.32,1.1]
[1764760398849,1.65709028,896.45,895.33,0.69774177]
[1764760399150,1.65709028,896.46,895.34,0.69774177]
[1764760399450,1.65709028,896.49,895.36,0.83437004]
[1764760399750,1.65709028,896.63,895.5,0.83437004]
[1764760399950,1.65709028,896.64,895.51,0.69774177]
[1764760400151,1.65709028,896.64,895.52,0.69774177]
[1764760400446,1.65709028,896.64,895.53,0.69774177]
[1764760400650,1.65709028,896.64,895.54,0.69774177]
[1764760400850,1.65709028,896.64,895.55,0.69774177]
[1764760401150,1.65709028,896.64,895.56,0.69774177]
[1764760401350,1.65709028,896.64,895.57,0.69774177]
[1764760401550,1.65709028,896.64,895.58,0.69774177]
[1764760401846,1.65709028,896.69,895.59,0.69774177]
[1764760402050,1.65709028,896.69,895.6,0.69774177]
[1764760402247,1.65709028,896.69,895.61,0.69774177]
[1764760402448,1.65709028,896.69,895.62,0.69774177]
[1764760402752,1.65709028,896.7,895.63,0.69774177]
[1764760403049,1.65709028,896.7,895.64,0.69774177]
[1764760403253,1.65709028,896.7,895.65,0.69774177]
[1764760403450,1.65709028,896.7,895.66,0.69774177]
[1764760403650,1.65709028,896.72,895.67,0.69774177]
[1764760403952,1.65709028,896.72,895.68,0.69774177]
[1764760404151,1.65709028,896.72,895.69,0.69774177]
[1764760404448,1.65709028,896.75,895.7,0.69774177]
[1764760404651,1.65709028,896.75,895.71,0.69774177]
[1764760404847,1.65709028,896.75,895.72,0.69774177]
[1764760405147,1.65709028,896.75,895.73,0.69774177]
[1764760405349,1.65709028,896.75,895.74,0.69774177]
[1764760405550,1.65709028,896.76,895.75,0.69774177]
[1764760405753,1.65709028,896.76,895.76,0.69774177]
[1764760405951,1.65709028,896.74,895.77,0.69774177]
[1764760406149,1.65709028,896.74,895.78,0.69774177]
[1764760406351,1.65709028,896.74,895.32,1.1]
[1764760406352,1.65709028,896.72,895.79,0.69774177]
[1764760406651,1.65709028,896.72,895.8,0.69774177]
[1764760406851,1.65709028,896.72,895.81,0.69774177]
[1764760407152,1.65709028,896.72,895.82,0.69774177]
[1764760407353,1.65709028,896.72,895.54,0.83437004]
[1764760407652,1.65709028,896.73,895.55,0.69734666]
[1764760407849,1.65709028,896.73,895.56,0.69734666]
[1764760408148,1.65709028,896.73,895.57,0.69734666]
[1764760408350,1.65709028,896.74,895.58,0.69734666]
[1764760408553,1.65709028,896.74,895.59,0.69734666]
[1764760408754,1.65709028,896.74,895.6,0.69734666]
[1764760408952,1.65709028,896.74,895.61,0.69734666]
[1764760409150,1.65709028,896.74,895.62,0.69734666]
[1764760409355,1.65709028,896.75,895.63,0.69734666]
[1764760409652,1.65709028,896.75,895.64,0.69734666]
[1764760409850,1.65709028,896.75,895.65,0.69734666]
[1764760410054,1.65709028,896.75,895.66,0.69734666]
[1764760410254,1.65709028,896.75,895.67,0.69734666]
[1764760410550,1.65709028,896.75,895.68,0.69734666]
[1764760410856,1.65709028,896.75,895.69,2.00734666]
[1764760411151,1.65709028,896.75,895.7,0.69734666]
[1764760411354,1.65709028,896.75,895.71,0.69734666]
[1764760411555,1.65709028,896.75,895.72,0.69734666]
[1764760411755,1.65709028,896.75,895.73,0.69734666]
[1764760411953,1.65709028,896.75,895.74,0.69734666]
[1764760412155,1.65709028,896.75,895.69,1.31]
[1764760412156,1.65709028,896.75,895.75,0.69734666]
[1764760412359,1.65709028,896.74,895.76,0.69734666]
[1764760412658,1.65709028,896.74,895.77,0.69734666]
[1764760412859,1.65709028,896.74,895.78,0.69734666]
[1764760413058,1.65709028,896.74,895.79,0.69734666]
[1764760413258,1.65709028,896.74,895.69,1.31]
[1764760413259,1.65709028,896.74,895.8,0.69734666]
[1764760413461,1.65709028,896.74,895.81,0.69734666]
[1764760413655,1.65709028,896.74,895.69,1.31]
[1764760413854,1.65709028,896.77,895.7,0.69784971]
[1764760414058,1.65709028,896.77,895.71,0.69784971]
[1764760414256,1.65709028,896.77,895.69,1.31]
[1764760414257,1.85122496,896.82,895.72,0.69784971]
[1764760414455,0.19413468,896.82,895.73,0.69784971]
[1764760414655,0.19413468,896.82,895.69,1.31]
[1764760414656,0.19413468,896.82,895.74,0.69784971]
[1764760414859,0.19413468,896.82,895.75,0.69784971]
[1764760415059,0.19413468,896.82,895.76,0.69784971]
[1764760415257,0.19413468,896.82,895.77,0.69784971]
[1764760415461,0.19413468,896.82,895.78,0.69784971]
[1764760415759,0.19413468,896.82,895.79,0.69784971]
[1764760415959,0.19413468,896.82,895.8,0.69784971]
[1764760416160,0.19413468,896.82,895.81,0.69784971]
[1764760416360,0.19413468,896.82,895.69,1.31]
[1764760416361,0.19413468,896.82,895.82,0.69784971]
[1764760416560,0.19413468,896.82,895.83,0.69784971]
[1764760416755,0.19413468,896.82,895.84,0.69784971]
[1764760416956,0.19413468,896.82,895.85,0.69784971]
[1764760417256,0.19413468,896.82,895.86,0.69784971]
[1764760417461,0.19413468,896.82,895.87,0.69784971]
[1764760417763,1.65709028,896.81,895.69,1.31]
[1764760418003,0.19413468,896.82,895.7,0.69750359]
[1764760418306,0.19413468,896.82,895.71,0.69750359]
[1764760418493,0.19413468,896.82,895.72,0.69750359]
[1764760418659,0.19413468,896.82,895.69,1.31]
[1764760418660,0.19413468,896.82,895.73,0.69750359]
[1764760418859,0.19413468,896.82,895.74,0.69750359]
[1764760419162,0.19413468,896.82,895.75,0.69750359]
[1764760419463,0.19413468,896.82,895.76,0.69750359]
[1764760419659,0.19413468,896.82,895.77,0.69750359]
[1764760419860,0.19413468,896.82,895.78,0.69750359]
[1764760420163,0.19413468,896.82,895.69,1.31]
[1764760420164,0.19413468,896.82,895.79,0.69750359]
[1764760420364,0.19413468,896.82,895.8,0.69750359]
[1764760420660,0.19413468,896.82,895.81,0.69750359]
[1764760420963,0.19413468,896.82,895.82,0.69750359]
[1764760421165,0.19413468,896.82,895.83,0.69750359]
[1764760421364,0.19413468,896.82,895.84,0.69750359]
[1764760421562,0.19413468,896.82,895.85,0.69750359]
[1764760421765,0.19413468,896.82,895.86,0.69750359]
[1764760421962,0.19413468,896.82,895.87,0.69750359]
[1764760422160,0.19413468,896.82,895.88,0.69750359]
[1764760422461,0.19413468,896.82,895.89,0.69750359]
[1764760422660,0.19413468,896.82,895.9,0.69750359]
[1764760422865,0.19413468,896.82,895.91,0.69750359]
[1764760423060,0.19413468,896.82,895.92,0.69750359]
[1764760423264,0.19413468,896.82,895.93,0.69750359]
[1764760423466,0.19413468,896.82,895.94,0.69750359]
[1764760423761,0.19413468,896.82,895.95,0.69750359]
[1764760423964,0.19413468,896.82,895.96,0.69750359]
[1764760424163,0.19413468,896.82,895.97,0.69750359]
[1764760424360,0.19413468,896.82,895.98,0.69750359]
[1764760424564,0.19413468,896.82,895.99,0.69750359]
[1764760424766,0.19413468,896.82,896.0,0.69750359]
[1764760424965,0.19413468,896.82,895.73,0.83437004]
[1764760424966,0.19413468,896.82,896.01,0.69750359]
[1764760425262,0.19413468,896.82,896.02,0.69750359]
[1764760425461,0.19413468,896.82,895.73,0.83437004]
[1764760425663,0.19413468,896.82,895.74,0.69741251]
[1764760425862,0.19413468,896.82,895.75,0.69741251]
[1764760426064,0.19413468,896.82,895.76,0.69741251]
[1764760426264,0.19413468,896.82,895.77,0.69741251]
[1764760426463,0.19413468,896.82,895.78,0.69741251]
[1764760426667,0.19413468,896.82,895.79,0.69741251]
[1764760426865,0.19413468,896.82,895.8,0.69741251]
[1764760427068,0.19413468,896.82,895.81,0.69741251]
[1764760427364,0.19413468,896.82,895.82,0.69741251]
[1764760427564,0.19413468,896.82,895.83,0.69741251]
[1764760427770,0.19413468,896.82,895.84,0.69741251]
[1764760427970,0.19413468,896.82,895.85,0.69741251]
[1764760428169,0.19413468,896.82,895.86,0.69741251]
[1764760428465,0.19413468,896.82,895.87,0.69741251]
[1764760428766,0.19413468,896.82,895.88,0.69741251]
[1764760428969,0.19413468,896.82,895.89,0.69741251]
[1764760429270,1.65709028,897.06,895.9,0.69741251]
[1764760429565,1.65709028,897.06,895.91,0.69741251]
[1764760429766,1.65709028,897.03,895.92,0.69741251]
[1764760429966,1.65709028,897.03,895.93,0.69741251]
[1764760430167,1.65709028,897.03,895.94,0.69741251]
[1764760430367,1.65709028,897.03,895.95,0.69741251]
[1764760430572,1.65709028,897.03,895.96,0.69741251]
[1764760430769,1.65709028,897.03,895.97,0.69741251]
[1764760430975,1.65709028,897.03,895.98,0.69741251]
[1764760431173,1.65709028,897.02,895.99,0.69741251]
[1764760431371,1.65709028,897.02,896.0,0.69741251]
[1764760431573,1.65709028,897.02,896.01,0.69741251]
[1764760431772,1.65709028,897.02,896.02,0.69741251]
[1764760432076,1.65709028,897.02,896.03,0.69741251]
[1764760432272,1.65709028,897.02,896.04,0.69741251]
[1764760432477,1.65709028,897.02,896.05,0.69741251]
[1764760432676,1.65709028,897.02,896.06,0.69741251]
[1764760432977,1.65709028,897.02,896.07,0.69741251]
[1764760433175,1.65709028,897.04,895.77,0.83437004]
[1764760433373,1.65709028,897.03,895.78,0.69733932]
[1764760433676,1.65709028,897.03,895.79,0.69733932]
[1764760433877,1.65709028,897.03,895.8,0.69733932]
[1764760434178,1.65709028,897.02,895.81,0.69733932]
[1764760434477,0.01015956,897.93,895.69,1.31]
[1764760434478,0.19413576,896.72,895.82,0.69733932]
[1764760434773,0.19413576,896.72,895.83,0.69733932]
[1764760434976,0.19413576,896.72,895.84,0.69733932]
[1764760435179,0.19413576,896.72,895.85,0.69733932]
[1764760435474,0.19413576,896.72,895.86,0.69733932]
[1764760435675,0.19413576,896.72,895.87,0.69733932]
[1764760435978,0.19413576,896.72,895.88,0.69733932]
[1764760436175,0.19413576,896.72,895.89,0.69733932]
[1764760436380,0.19413576,896.72,895.9,0.69733932]
[1764760436577,0.19413576,896.72,895.91,0.69733932]
[1764760436874,0.19413576,896.72,895.92,0.69733932]
[1764760437078,0.19413576,896.72,895.79,0.83437004]
[1764760437079,0.19413576,896.72,895.93,0.69733932]
[1764760437374,0.19413576,896.72,895.94,0.69733932]
[1764760437575,0.19413576,896.72,895.95,0.69733932]
[1764760437778,0.19413576,896.72,895.96,0.69733932]
[1764760437978,0.19413576,896.72,895.97,0.69733932]
[1764760438176,0.19413576,896.72,895.98,0.69733932]
[1764760438380,0.19413576,896.72,895.99,0.69733932]
[1764760438578,0.19413576,896.72,895.77,0.83437004]
[1764760438579,0.19413576,896.72,896.0,0.69733932]
[1764760438782,0.19413576,896.72,896.01,0.69733932]
[1764760438982,0.19413576,896.72,896.02,0.69733932]
[1764760439278,0.19413576,896.72,896.03,0.69733932]
[1764760439478,0.19413576,896.72,896.04,0.69733932]
[1764760439683,0.19413576,896.72,896.05,0.69733932]
[1764760439881,0.19413576,896.72,896.06,0.69733932]
[1764760440181,0.19413576,896.72,895.77,0.83437004]
[1764760440483,0.19413576,896.72,895.78,0.69924203]
[1764760440778,0.19413576,896.72,895.79,0.69924203]
[1764760440984,0.19413576,896.72,895.8,0.69924203]
[1764760441283,0.19413576,896.72,895.81,0.69924203]
[1764760441482,0.19413576,896.72,895.82,0.69924203]
[1764760441684,0.19413576,896.72,895.83,0.69924203]
[1764760441884,0.19413576,896.72,895.84,0.69924203]
[1764760442179,0.19413576,896.72,895.85,0.69924203]
[1764760442388,0.19413576,896.72,895.86,0.69924203]
[1764760442679,0.19413576,896.72,895.87,0.69924203]
[1764760442884,0.19413576,896.72,895.88,0.69924203]
[1764760443083,0.19413576,896.72,895.89,0.69924203]
[1764760443279,0.19413576,896.72,895.9,0.69924203]
[1764760443478,0.19413576,896.72,895.91,0.69924203]
[1764760443678,0.19413576,896.72,895.92,0.69924203]
[1764760443878,0.19413576,896.72,895.93,0.69915541]
[1764760444081,0.19413576,896.72,895.69,1.31]
[1764760444082,0.19413576,896.72,895.94,0.69915541]
[1764760444284,0.19413576,896.72,895.95,0.69915541]
[1764760444483,0.19413576,896.72,895.96,0.69915541]
[1764760444783,0.19413576,896.72,895.97,0.69915541]
[1764760444985,0.19413576,896.72,895.98,0.69915541]
[1764760445184,0.19413576,896.72,895.99,0.69915541]
[1764760445381,0.19413576,896.72,896.0,0.69915541]
[1764760445580,0.19413576,896.72,896.01,0.69915541]
[1764760445781,0.19413576,896.72,896.02,0.69915541]
[1764760445981,0.19413576,896.72,896.03,0.69915541]
[1764760446185,0.19413576,896.72,896.04,0.69915541]
[1764760446485,0.19413576,896.72,896.05,0.69915541]
[1764760446786,0.19413576,896.72,896.02,1.103]
[1764760446986,0.19413576,896.72,896.03,0.69909578]
[1764760447288,0.19413576,896.72,896.04,0.69909578]
[1764760447487,0.19413576,896.72,896.05,0.69909578]
[1764760447687,0.19413576,896.72,896.02,1.103]
[1764760456691,0.19413576,896.72,896.03,1.159]
[1764760457592,1.85122604,896.72,896.03,1.159]
[1764760462191,1.65709028,896.71,896.03,1.159]
[1764760463192,1.85122604,896.72,896.03,1.159]
[1764760467498,1.65709028,896.62,896.03,1.159]
[1764760468299,1.65709028,896.63,896.03,1.159]
[1764760470197,1.65709028,896.62,896.03,1.159]
[1764760476603,1.65709028,896.33,896.03,1.159]
[1764760477209,1.65709028,896.34,896.03,1.159]
[1764760477404,1.65709028,896.35,896.03,1.159]
[1764760477609,0.19413576,896.72,896.03,1.159]
[1764760477610,1.65709028,896.41,896.03,1.159]
[1764760477809,1.65709028,896.42,896.04,1.064]
[1764760478109,1.65709028,896.54,896.04,1.064]
[1764760478411,1.65709028,896.63,896.04,1.064]
[1764760479012,1.65709028,896.48,896.04,1.064]
[1764760479211,1.65709028,896.45,896.04,1.064]
[1764760479707,1.65709028,896.46,896.04,1.064]
[1764760483512,1.65709028,896.41,896.04,1.064]
[1764760484113,1.65709028,896.41,896.05,1.104]
[1764760484618,1.65709028,896.39,896.05,1.104]
[1764760485219,1.65709028,896.31,896.05,1.104]
[1764760487521,1.65709028,896.27,896.05,1.104]
[1764760487723,1.65709028,896.26,896.05,1.104]
[1764760488018,1.65709028,896.18,896.05,1.104]
[1764760488222,1.65709028,896.15,896.05,1.104]
[1764760492318,1.65709028,896.16,896.05,1.104]
[1764760492519,1.65709028,896.17,896.05,1.104]
[1764760493119,1.65709028,896.28,896.05,1.104]
[1764760495824,0.19413576,896.72,896.05,1.104]
[1764760495825,1.65709028,896.21,896.05,1.104]
[1764760497126,1.65709028,896.2,896.05,1.104]
[1764760497628,1.65709028,896.18,896.05,1.104]
[1764760497924,1.65709028,896.17,896.05,1.104]
[1764760498427,1.65709028,896.13,896.05,1.104]
[1764760499526,0.19413576,896.72,896.05,1.104]
[1764760499527,1.65709028,896.09,896.05,1.104]
[1764760502825,1.65709028,896.06,896.05,1.104]
[1764760503726,1.65709028,896.07,896.05,1.104]
[1764760503924,1.65709028,896.07,896.04,1.064]
[1764760503925,1.65709028,896.07,896.04,0.35503827]
[1764760504126,2.77801101,896.59,896.04,0.35503827]
[1764760505032,2.77801101,896.64,896.04,0.35503827]
[1764760507630,2.77801101,896.51,896.04,0.35503827]
[1764760508629,2.77801101,896.45,896.04,0.35503827]
[1764760509133,0.19413576,896.72,896.04,0.35503827]
[1764760509134,2.77801101,896.44,896.04,0.35503827]
[1764760511332,2.77801101,896.43,896.04,0.35503827]
[1764760511731,2.77801101,896.37,896.04,0.35503827]
[1764760514036,2.77801101,896.37,896.04,0.06970647]
[1764760515440,3.88921542,896.69,896.04,0.06970647]
[1764760515736,0.19413576,896.72,896.04,0.06970647]
[1764760529752,0.19413576,896.72,895.59,0.938]
[1764760530954,0.19413576,896.72,894.61,0.83433196]
[1764760531154,0.19413576,896.72,894.94,0.83433196]
[1764760531349,3.88921542,896.71,894.95,0.7208874]
[1764760531552,2.77801101,896.39,894.96,0.7208874]
[1764760531748,2.77801101,896.39,894.89,0.83433196]
[1764760531749,2.77801101,896.39,894.97,0.7208874]
[1764760531954,2.77801101,896.39,894.98,0.7208874]
[1764760532154,2.77801101,896.39,894.99,0.7208874]
[1764760532454,2.77801101,896.39,895.0,0.7208874]
[1764760532754,2.77801101,896.39,895.01,0.7208874]
[1764760532954,2.77801101,896.39,895.02,0.7208874]
[1764760533154,2.77801101,896.39,895.03,0.7208874]
[1764760533353,2.77801101,896.39,895.04,0.7208874]
[1764760533654,2.77801101,896.33,895.05,0.7208874]
[1764760533955,2.77801101,896.33,895.06,0.7208874]
[1764760534154,2.77801101,896.33,895.07,0.7208874]
[1764760534354,2.77801101,896.33,895.08,0.7208874]
[1764760534551,2.77801101,896.33,895.09,0.7208874]
[1764760534851,2.77801101,896.37,895.06,1.077]
[1764760535051,2.77801101,896.37,895.07,0.72578414]
[1764760535252,2.77801101,896.38,895.06,1.077]
[1764760535654,2.77801101,896.34,895.06,1.077]
[1764760537852,2.77801101,896.35,895.06,1.077]
[1764760538850,2.77801101,896.4,895.06,1.077]
[1764760539356,2.77801101,896.42,895.06,1.077]
[1764760544455,2.77801101,896.43,895.06,1.077]
[1764760545556,2.77801101,896.44,895.06,1.077]
[1764760545961,2.77801101,896.33,895.06,1.077]
[1764760548262,2.77801101,896.34,895.06,1.077]
[1764760549659,2.77801101,896.35,895.06,1.077]
[1764760550260,2.77801101,896.36,895.06,1.077]
[1764760550663,2.77801101,896.26,895.06,1.077]
[1764760551665,2.77801101,896.18,895.07,1.317]
[1764760554270,2.77801101,896.32,895.07,1.317]
[1764760554869,2.77801101,896.27,895.07,1.317]
[1764760555266,2.77801101,895.56,893.71,0.83433196]
[1764760555465,2.77801101,895.56,893.97,0.72411369]
[1764760555669,2.77801101,895.56,893.98,0.72411369]
[1764760555876,2.77801101,895.56,893.99,0.72411369]
[1764760556169,2.77801101,895.56,894.0,0.72406339]
[1764760556366,2.77801101,895.63,894.01,0.72406339]
[1764760556566,2.77801101,895.63,894.02,0.72406339]
[1764760556765,2.77801101,895.65,894.03,0.72406339]
[1764760557070,2.77801101,895.65,894.04,0.72406339]
[1764760557267,2.77801101,895.65,894.05,0.72406339]
[1764760557570,2.77801101,895.67,894.06,0.72406339]
[1764760557770,2.77801101,895.67,894.07,0.72406339]
[1764760557971,2.77801101,895.69,894.08,0.72406339]
[1764760558171,2.77801101,895.69,893.78,0.83433196]
[1764760558373,2.77801101,895.69,894.09,1.094]
[1764760558573,0.82696807,894.39,894.09,1.094]
[1764760558972,0.82696807,894.37,894.09,1.094]
[1764760560370,0.82696807,894.38,894.09,1.094]
[1764760560868,0.82696807,894.39,894.09,1.094]
[1764760561372,0.82696807,894.44,894.09,1.094]
[1764760562874,0.82696807,894.46,894.09,1.094]
[1764760563071,2.77801101,895.4,894.09,1.094]
[1764760563072,0.82696807,894.51,894.09,1.094]
[1764760565274,0.00919525,895.4,894.09,1.094]
[1764760565275,0.82696807,894.47,894.09,1.094]
[1764760565671,0.82696807,894.48,894.09,1.094]
[1764760565873,0.82696807,894.49,894.09,1.094]
[1764760566073,0.82696807,894.57,894.09,1.094]
[1764760566272,2.77801101,895.54,894.09,1.094]
[1764760566273,0.82696807,894.68,894.09,1.094]
[1764760566673,0.82696807,894.6,894.09,1.094]
[1764760567577,0.82696807,894.59,894.09,1.094]
[1764760567773,0.82696807,894.83,894.09,1.094]
[1764760568073,0.82696807,894.84,894.09,1.094]
[1764760568277,0.82696807,894.93,894.09,1.094]
[1764760569875,0.82696807,894.94,894.09,1.094]
[1764760570476,0.82696807,894.91,894.09,1.094]
[1764760570781,0.82696807,894.82,894.09,1.094]
[1764760571182,0.82696807,894.8,894.09,1.094]
[1764760571584,0.82696807,894.81,894.09,1.094]
[1764760573184,0.82696807,894.83,894.09,1.094]
[1764760573380,0.82696807,895.17,894.29,0.83433196]
[1764760573577,0.82696807,895.16,894.28,0.83433196]
[1764760576285,0.82696807,895.17,894.29,0.83433196]
[1764760577088,0.82696807,895.18,894.3,1.83133196]
[1764760577285,0.82696807,895.18,894.31,0.83433196]
[1764760577484,0.82696807,895.19,894.31,0.83433196]
[1764760577889,0.82696807,895.17,894.3,0.997]
[1764760578697,0.82696807,895.22,894.3,0.997]
[1764760580192,0.82696807,895.23,894.3,0.997]
[1764760580792,0.82696807,895.25,894.3,0.997]
[1764760581893,0.82696807,895.28,894.31,0.83433196]
[1764760582093,0.82696807,895.35,894.38,0.83433196]
[1764760582292,0.82696807,895.35,894.39,0.83433196]
[1764760582495,0.01408657,896.25,894.3,0.997]
[1764760582496,0.82696807,895.39,894.43,0.83433196]
[1764760582994,0.82696807,895.43,894.47,0.83433196]
[1764760583290,0.82696807,895.42,894.47,0.83433196]
[1764760585095,1.65393615,895.74,894.64,0.83433196]
[1764760585096,0.82696807,895.57,894.64,0.83433196]
[1764760586296,0.82696807,895.57,894.65,0.83433196]
[1764760587292,1.65393615,895.89,894.66,0.83433196]
[1764760587293,0.82696807,895.56,894.66,0.83433196]
[1764760587497,0.82696807,895.57,894.66,0.83433196]
[1764760587792,0.82696807,895.55,894.64,0.83433196]
[1764760588393,0.82696807,895.53,894.65,1.57676128]
[1764760588591,0.01007929,896.43,894.89,0.83433196]
[1764760588791,2.77801101,896.73,894.9,0.74242932]
[1764760588991,2.77801101,896.73,894.91,0.74242932]
[1764760589292,2.97214677,896.72,894.92,0.74242932]
[1764760589495,2.97214677,896.72,894.93,1.57676128]
[1764760589693,0.19413576,896.72,894.94,0.74242932]
[1764760589892,0.19413576,896.72,894.95,0.74242932]
[1764760590095,0.19413576,896.72,894.96,0.74242932]
[1764760590298,0.19413576,896.72,894.97,0.74242932]
[1764760590497,0.19413576,896.72,894.98,0.74242932]
[1764760590693,0.19413576,896.72,894.99,0.74242932]
[1764760590897,0.19413576,896.72,894.93,0.83433196]
[1764760590898,0.19413576,896.72,895.0,0.74242932]
[1764760591095,0.19413576,896.72,895.01,0.74242932]
[1764760591300,0.19413576,896.72,895.02,0.74242932]
[1764760591600,0.19413576,896.72,895.03,0.74242932]
[1764760591801,0.19413576,896.72,895.04,0.74242932]
[1764760592101,0.19413576,896.72,895.05,0.74242932]
[1764760592301,0.19413576,896.72,895.06,0.74242932]
[1764760592598,0.19413576,896.72,895.07,0.74242932]
[1764760592802,0.19413576,896.72,895.08,0.74242932]
[1764760593004,0.19413576,896.72,895.09,0.74242932]
[1764760593201,0.19413576,896.72,895.1,0.74242932]
[1764760593400,0.19413576,896.72,895.11,0.74242932]
[1764760593605,0.19413576,896.72,895.12,0.74242932]
[1764760593804,0.19413576,896.72,895.13,0.74242932]
[1764760593999,0.19413576,896.72,895.14,0.74242932]
[1764760594299,0.19413576,896.72,895.15,0.74242932]
[1764760594504,0.19413576,896.72,895.16,0.74242932]
[1764760594705,0.19413576,896.72,895.17,0.74242932]
[1764760595000,0.19413576,896.72,895.18,0.74242932]
[1764760595202,0.19413576,896.72,895.19,0.74242932]
[1764760595406,0.19413576,896.72,895.2,0.74242932]
[1764760595606,0.19413576,896.72,895.21,0.74242932]
[1764760595804,0.19413576,896.72,895.22,0.74242932]
[1764760596002,0.19413576,896.72,895.23,0.74242932]
[1764760596205,0.19413576,896.72,895.24,0.74242932]
[1764760596405,0.19413576,896.72,895.25,0.74242932]
[1764760596603,0.19413576,896.72,895.26,0.74242932]
[1764760596907,0.19413576,896.72,895.04,0.819]
[1764760597107,0.19413576,896.72,895.05,0.74249445]
[1764760597305,0.19413576,896.72,895.04,0.819]
[1764760597306,0.19413576,896.72,895.06,0.74249445]
[1764760597505,0.19413576,896.72,895.07,0.74249445]
[1764760597704,0.19413576,896.72,895.08,0.74249445]
[1764760597904,0.19413576,896.72,895.09,0.74249445]
[1764760598104,2.97214677,896.72,895.1,0.74249445]
[1764760598305,2.97214677,896.72,895.11,0.74249445]
[1764760598505,2.97214677,896.72,895.12,0.74249445]
[1764760598703,2.97214677,896.72,895.13,0.74249445]
[1764760598908,2.97214677,896.72,895.14,0.74249445]
[1764760599110,0.19413576,896.72,895.15,0.74249445]
[1764760599307,0.19413576,896.72,895.16,0.74249445]
[1764760599506,0.19413576,896.72,895.17,0.74249445]
[1764760599807,0.19413576,896.72,895.04,0.819]
[1764760600009,0.19413576,896.72,895.05,0.74235064]
[1764760600304,0.19413576,896.72,895.06,0.74235064]
[1764760600507,0.19413576,896.72,895.07,0.74235064]
[1764760600809,0.19413576,896.72,895.08,0.74235064]
[1764760601010,0.19413576,896.72,895.09,0.74235064]
[1764760601207,0.19413576,896.72,895.1,0.74235064]
[1764760601411,0.19413576,896.72,895.11,0.74235064]
[1764760601708,0.19413576,896.72,895.12,1.66935064]
[1764760602009,0.19413576,896.72,895.13,0.74235064]
[1764760602211,0.19413576,896.72,895.14,0.74235064]
[1764760602512,0.19413576,896.72,895.15,0.74235064]
[1764760602712,0.19413576,896.72,895.16,0.74235064]
[1764760602911,0.19413576,896.72,895.17,0.74235064]
[1764760603110,0.19413576,896.72,895.18,0.74241276]
[1764760603413,0.19413576,896.72,895.12,0.927]
[1764760603709,0.19413576,896.72,895.13,0.74236642]
[1764760603909,0.19413576,896.72,895.14,0.74236642]
[1764760604113,0.19413576,896.72,895.15,0.74236642]
[1764760604312,0.19413576,896.72,895.16,0.74236642]
[1764760604507,0.19413576,896.72,895.17,0.74236642]